[Event "Romanian Rapid Open 2022"]
[Site "Sebes"]
[Date "2022.12.02"]
[Round "4.14"]
[White "Nagy-Elek, Tamas"]
[Black "Ciorgovean, Iustin"]
[Result "0-1"]
[ECO "B30"]
[WhiteElo "1976"]
[BlackElo "2319"]
[Annotator "TA"]
[PlyCount "85"]
[EventDate "2022.12.02"]
[EventType "rapid"]
[EventCountry "ROU"]
[SourceTitle "playchess.com"]
[Source "ChessBase"]
[SourceQuality "1"]
[TimeControl "600+5"]

{[%evp 15,85,34,26,0,8,-10,3,-48,0,-48,-39,-99,-90,-100,-95,-98,-73,-62,-68,-92,-94,-97,-58,-58,-66,-54,-50,-53,-43,-47,-43,-65,-29,-34,-15,-27,0,0,0,0,0,0,0,-23,-10,-81,-67,-1726,-1699,-1623,-1582,-1502,-1420,-5845,-2660,-5293,-2557,-29974,-29973,-29975,-29975,-29975,-29976,-29979,-29980,-29980,-29981,-29981,-29982,-29982,-29983,-29982]} 1. e4 {[%emt 0:00:02] Primel,Dominique} c5 {[%emt 0:00:01]} 2. Nf3 {[%emt 0:00:03]} Nc6 {[%emt 0:00:01]} 3. Bb5 {[%emt 0:00:02]} e6 {[%emt 0:00:11]} 4. O-O {[%emt 0:00:19]} Nge7 {[%emt 0:00:01]} 5. c3 {[%emt 0:00:03]} a6 {[%emt 0:00:01]} 6. Ba4 {[%emt 0:00:03]} b5 {[%emt 0:00:07]} 7. Bc2 {[%emt 0:00:02]} Bb7 {[%emt 0:00:19]} 8. Re1 {[%emt 0:00:37]} Rc8 {[%emt 0:00:25]} 9. d3 {[%emt 0:01:05] B30: Sicilian: 2...Nc6 3 Bb5, lines without ...g6.} Ng6 {[%emt 0:00:36]} 10. Nbd2 {[%emt 0:00:23]} Be7 {[%emt 0:00:46]} 11. Nf1 {[%emt 0:00:15]} (11. Nb3 $11) 11... O-O {[%emt 0:00:08]} (11... d5 $15 {might be stronger.}) 12. Ng3 {[%emt 0:02:07]} (12. Ne3 $11) 12... d5 $15 {[%emt 0:00:08] [#]} 13. d4 $146 {[%emt 0:01:02]} (13. Qe2 $15) ({Predecessor:} 13. exd5 Qxd5 14. Bb3 Qd7 15. Qe2 Rfd8 16. Bc2 Qc7 17. Ng5 Nce5 18. f4 Bxg5 19. fxg5 {½-½ (57) Favre,M (2080)-Roser,K (2436) Issy les Moulineaux 2009 EXT 2010 [Primel,Dominique]}) 13... cxd4 $17 {[%emt 0:00:24]} 14. Nxd4 {[%emt 0:00:07]} Nxd4 {[%emt 0:00:29]} 15. Qxd4 {[%emt 0:00:54]} dxe4 {[%emt 0:01:58] [#] aiming for ...Qxd4.} 16. Qxd8 {[%emt 0:00:24]} Rfxd8 {[%emt 0:00:01]} 17. Bxe4 {[%emt 0:00:06]} Bxe4 {[%emt 0:00:07]} 18. Nxe4 {[%emt 0:00:03]} Ne5 {[%emt 0:00:19] Black is more active.} 19. Be3 {[%emt 0:01:03]} Nc4 {[%emt 0:01:02]} 20. Re2 {[%emt 0:00:08]} Nxe3 {[%emt 0:01:46]} 21. Rxe3 {[%emt 0:00:10]} a5 {[%emt 0:00:02]} 22. a3 {[%emt 0:00:31]} g6 {[%emt 0:00:09]} 23. Kf1 {[%emt 0:00:14]} Rc6 {[%emt 0:00:43] [#] Hoping for ...f5.} 24. f4 {[%emt 0:01:59]} f5 {[%emt 0:00:33]} 25. Ng5 {[%emt 0:00:28]} Bxg5 {[%emt 0:01:53]} 26. fxg5 $11 {[%emt 0:00:00][%mdl 4096] Endgame KRR-KRR} Rd5 {[%emt 0:00:00]} 27. Rae1 {[%emt 0:00:00] Prevents e5.} Kf7 {[%emt 0:00:00]} 28. Re5 {[%emt 0:00:03]} Rcd6 {[%emt 0:00:00]} 29. h3 {[%emt 0:00:07]} Ke7 {[%emt 0:00:00]} 30. Rxd5 {[%emt 0:00:06]} (30. g4 $11) 30... Rxd5 {[%emt 0:00:00] KR-KR} 31. Ke2 $2 {[%emt 0:00:03][%mdl 8192] This costs White the game.} (31. a4 $15) 31... Re5+ $19 {[%emt 0:00:00]} 32. Kd2 {[%emt 0:00:02]} Rxe1 {[%emt 0:00:00]} 33. Kxe1 {[%emt 0:00:01] KP-KP} a4 {[%emt 0:00:00] And now ...Kd6 would win.} 34. Ke2 {[%emt 0:00:11]} Kd6 {[%emt 0:00:00]} 35. Kd3 {[%emt 0:00:07]} Kd5 {[%emt 0:00:00]} 36. g3 {[%emt 0:00:04]} e5 {[%emt 0:00:00][%cal Be6e5,Be5f4][%mdl 32] Black mates.} 37. h4 {[%emt 0:00:04]} Kc5 {[%emt 0:00:00]} 38. Kd2 {[%emt 0:00:07]} Kc4 {[%emt 0:00:00]} 39. Kc2 {[%emt 0:00:08]} f4 {[%emt 0:00:00]} 40. gxf4 {[%emt 0:00:04]} exf4 {[%emt 0:00:00]} 41. Kd2 {[%emt 0:00:06]} Kb3 {[%emt 0:00:00]} 42. Kd3 {[%emt 0:00:04]} Kxb2 {[%emt 0:00:01]} 43. Kd4 {[%emt 0:00:13] Weighted Error Value: White=0.77/Black=0.07 (flawless)} 0-1

[Event "Romanian Rapid Open 2022"]
[Site "Sebes"]
[Date "2022.12.02"]
[Round "4.15"]
[White "Cosma, Elena-Luminita"]
[Black "Ghita, Vlad-Bogdan"]
[Result "1/2-1/2"]
[ECO "D10"]
[WhiteElo "2244"]
[BlackElo "1938"]
[Annotator "TA"]
[PlyCount "49"]
[EventDate "2022.12.02"]
[EventType "rapid"]
[EventCountry "ROU"]
[SourceTitle "playchess.com"]
[Source "ChessBase"]
[SourceQuality "1"]
[TimeControl "600+5"]

{[%evp 16,49,26,29,31,29,31,20,49,54,104,24,25,1,8,1,22,9,14,9,9,-2,-4,-5,0,8,14,10,17,8,25,6,6,4,6,-121]} 1. d4 {[%emt 0:00:03]} d5 {[%emt 0:00:02]} 2. c4 {[%emt 0:00:01]} c6 {[%emt 0:00:02]} 3. cxd5 {[%emt 0:00:01]} cxd5 {[%emt 0:00:02]} 4. Bf4 {[%emt 0:00:01]} Nc6 {[%emt 0:00:01]} 5. Nc3 {[%emt 0:00:01]} Nf6 {[%emt 0:00:09]} 6. e3 {[%emt 0:00:01]} a6 {[%emt 0:00:05]} 7. Bd3 {[%emt 0:00:04]} Bg4 {[%emt 0:00:11]} 8. Nge2 {[%emt 0:00:01]} e6 {[%emt 0:00:08]} 9. Rc1 {[%emt 0:00:49]} Bd6 {[%emt 0:00:21] D10: Slav Defence: 3 cxd5 (without early Nf3) and 3 Nc3.} 10. f3 {[%emt 0:00:01]} Bh5 {[%emt 0:00:13]} 11. Qb3 {[%emt 0:00:02] [#]} Nb4 $146 {[%emt 0:01:12]} ({Predecessor:} 11... Na5 12. Qa4+ b5 13. Bxb5+ axb5 14. Nxb5 Bxf4 15. Nc7+ Ke7 16. Nxf4 Qd7 17. Qb4+ Qd6 18. Qxd6+ Kxd6 {½-½ (26) Holzke,F (2521)-Smeets,J (2613) Germany 2013}) 12. Bb1 {[%emt 0:00:22]} Bg6 {[%emt 0:00:39]} ({Black should play} 12... O-O $14) 13. O-O {[%emt 0:03:03]} ({White should try} 13. Bxd6 $16 Qxd6 14. a3 Nd3+ 15. Bxd3 Bxd3 {[#]} 16. Nxd5 $1 {[%mdl 512]} (16. Qxb7 Rb8 $15) 16... Nxd5 17. Qxd3) 13... Bxb1 $11 {[%emt 0:00:09]} 14. Nxb1 {[%emt 0:00:17] [#] Threatens to win with Bxd6.} Rb8 {[%emt 0:00:27]} 15. Qa4+ {[%emt 0:00:58]} Qd7 {[%emt 0:00:23]} 16. Qa3 {[%emt 0:00:24]} O-O {[%emt 0:00:11]} 17. Bxd6 {[%emt 0:00:09]} Qxd6 {[%emt 0:00:02]} 18. Rc5 {[%emt 0:00:44]} Nc6 {[%emt 0:00:12]} 19. Rfc1 {[%emt 0:00:03]} Nd7 {[%emt 0:00:09]} 20. R5c3 {[%emt 0:00:22]} Qxa3 {[%emt 0:00:11]} 21. Nxa3 {[%emt 0:00:06]} Rfc8 {[%emt 0:00:05]} 22. Nf4 {[%emt 0:00:06]} Na7 {[%emt 0:01:15]} 23. Rc7 {[%emt 0:00:11]} Kf8 {[%emt 0:00:02]} 24. Nd3 {[%emt 0:01:17]} Ke8 {[%emt 0:00:16] aiming for ...Rxc7.} 25. Kf2 {[%emt 0:00:25] Weighted Error Value: White=0.14 (very precise) /Black=0.09 (flawless)} (25. R7c3 $11) 1/2-1/2

[Event "Romanian Rapid Open 2022"]
[Site "Sebes"]
[Date "2022.12.02"]
[Round "4.16"]
[White "Bucur, Denisa-Andreea"]
[Black "Cnejev, Vladimir-Alexandru"]
[Result "0-1"]
[ECO "A30"]
[WhiteElo "1953"]
[BlackElo "2293"]
[Annotator "TA"]
[PlyCount "50"]
[EventDate "2022.12.02"]
[EventType "rapid"]
[EventCountry "ROU"]
[SourceTitle "playchess.com"]
[Source "ChessBase"]
[SourceQuality "1"]
[TimeControl "600+5"]

{[%evp 21,50,-16,-20,-16,-18,-53,-59,-39,-56,-66,-66,-75,-36,-36,-26,-26,-16,-20,-6,-25,0,-214,-218,-202,-206,-254,-245,-247,-246,-472,-454]} 1. Nf3 {[%emt 0:00:02]} d5 {[%emt 0:00:01]} 2. e3 {[%emt 0:00:02]} Nf6 {[%emt 0:00:02]} 3. b3 {[%emt 0:00:04]} e6 {[%emt 0:00:02]} 4. Bb2 {[%emt 0:00:03]} Be7 {[%emt 0:00:02]} 5. Be2 {[%emt 0:00:09]} O-O {[%emt 0:00:03]} 6. O-O {[%emt 0:00:06]} b6 {[%emt 0:00:02]} 7. c4 {[%emt 0:00:06]} Bb7 {[%emt 0:00:02]} 8. Nc3 {[%emt 0:00:10]} c5 {[%emt 0:00:06]} 9. cxd5 {[%emt 0:00:09]} Nxd5 {[%emt 0:00:11]} 10. Nxd5 {[%emt 0:02:39]} Qxd5 {[%emt 0:00:49]} 11. Qc2 {[%emt 0:00:37]} Nc6 {[%emt 0:02:11][%cal Bb8c6,Bc6b4,Bb4d3][%mdl 32] [#]} 12. Rad1 $146 {[%emt 0:01:20] A30: Symmetrical English: Double Fianchetto and Hedgehog.} ({Predecessor:} 12. Bc3 Rfd8 13. Qb2 Bf8 14. Rfd1 a5 15. Rac1 Rac8 16. h3 h6 17. d3 b5 18. Qd2 Ra8 19. e4 Qd6 {½-½ (19) Nanu,C (2514)-Szabo,G (2531) Mamaia 2021}) 12... Rfd8 {[%emt 0:00:19]} 13. Qc4 {[%emt 0:01:41]} (13. Qb1 {is interesting.} Rac8 14. h3 a5 15. Qa1) 13... Qxc4 {[%emt 0:00:39]} 14. Bxc4 {[%emt 0:00:06] Black is slightly better.} Nb4 {[%emt 0:06:46]} 15. a3 {[%emt 0:00:47]} Nd3 {[%emt 0:00:00]} 16. Bc3 {[%emt 0:00:20]} a6 {[%emt 0:00:00] Black is more active.} 17. Ne1 {[%emt 0:00:52]} Nxe1 {[%emt 0:00:00]} 18. Rfxe1 {[%emt 0:00:01]} Rd7 {[%emt 0:00:00]} 19. a4 {[%emt 0:00:11]} Bc6 {[%emt 0:00:00]} 20. Be2 {[%emt 0:01:20]} b5 {[%emt 0:00:00][%cal Bb6b5,Bb5b4][%mdl 32]} 21. Bf3 $2 {[%emt 0:00:05] [#]} (21. Rc1 $11) 21... Bxf3 $19 {[%emt 0:00:00]} 22. gxf3 {[%emt 0:00:01]} b4 {[%emt 0:00:00]} 23. Bb2 {[%emt 0:00:12]} Rd3 {[%emt 0:00:00]} 24. Rb1 {[%emt 0:00:48]} Rxb3 {[%emt 0:00:00] ...Rd8 is the strong threat.} (24... Rxd2 $2 {is the wrong capture.} 25. Bc1 Rc2 26. e4) 25. e4 $2 {[%emt 0:00:08] [#]} (25. Kf1) 25... Rd8 {[%emt 0:00:00] Weighted Error Value: White=0.58/Black=0.06 (flawless)} (25... Rxf3 $2 {loses.} 26. Re3 Rxe3 27. fxe3 $19) 0-1

[Event "Romanian Rapid Open 2022"]
[Site "Sebes"]
[Date "2022.12.02"]
[Round "4.17"]
[White "Daianu, Cristian-Clement"]
[Black "Tudor, Henry Edward"]
[Result "1-0"]
[ECO "B41"]
[WhiteElo "2189"]
[BlackElo "1943"]
[Annotator "TA"]
[PlyCount "99"]
[EventDate "2022.12.02"]
[EventType "rapid"]
[EventCountry "ROU"]
[SourceTitle "playchess.com"]
[Source "ChessBase"]
[SourceQuality "1"]
[TimeControl "600+5"]

{[%evp 9,99,5,35,21,31,32,46,22,38,25,25,25,44,33,82,25,20,21,22,0,46,27,81,75,68,67,73,-19,-19,-85,21,23,34,-21,0,0,12,0,0,-50,136,140,158,130,297,286,520,524,557,541,700,686,691,574,693,700,927,916,985,987,925,520,815,804,829,829,818,818,716,547,1068,1066,858,446,5384,12831,12829,12825,1489,1329,962,737,5281,5514,29985,29986,29986,12846,12846,12847,29990,29990]} 1. e4 {[%emt 0:00:02]} c5 {[%emt 0:00:01]} 2. Nf3 {[%emt 0:00:02]} e6 {[%emt 0:00:05]} 3. d4 {[%emt 0:00:01]} cxd4 4. Nxd4 {[%emt 0:00:02]} a6 {[%emt 0:00:02]} 5. f4 {[%emt 0:00:04]} b5 {[%emt 0:00:35]} (5... d5 $5 {[%cal Rd5e4]}) 6. Bd3 {[%emt 0:00:24] Active counter play! B41: Sicilian: Kan Variation: 5 c4.} Bb7 {[%emt 0:01:00]} 7. Be3 {[%emt 0:00:50]} Nf6 {[%emt 0:01:00]} 8. Qf3 {[%emt 0:00:07] [#] White is slightly better.} h5 $146 {[%emt 0:00:25]} ({Predecessor:} 8... Nc6 9. Nd2 Qc7 10. g4 d6 11. g5 Nd7 12. Nxc6 Bxc6 13. O-O-O Nc5 14. Kb1 O-O-O {½-½ (48) Chirila,I (2526)-Kopylov,A (2442) Fermo 2009}) 9. Nd2 {[%emt 0:00:19]} d6 {[%emt 0:00:12]} 10. h3 {[%emt 0:09:04]} Nbd7 {[%emt 0:00:51]} 11. O-O {[%emt 0:00:00]} h4 {[%emt 0:00:41]} (11... e5 $14) 12. Rad1 {[%emt 0:00:00]} (12. b4 $1 $16) 12... Be7 {[%emt 0:00:05]} 13. c3 {[%emt 0:00:00]} Rc8 {[%emt 0:00:19]} 14. Bf2 {[%emt 0:00:00]} Rc7 {[%emt 0:00:38]} (14... Nh5 $11 {should be considered.}) 15. Rfe1 {[%emt 0:00:00]} Qa8 {[%emt 0:00:03]} (15... Nh5 $11 {remains equal.}) 16. Bb1 {[%emt 0:00:00]} g6 {[%emt 0:00:48]} 17. Qe3 {[%emt 0:00:00]} Nc5 {[%emt 0:00:20][%cal Bd7c5,Bc5a4,Ba4b2][%mdl 32]} 18. N4f3 {[%emt 0:00:00]} (18. Bc2 $16) 18... Na4 $11 {[%emt 0:00:07]} 19. f5 {[%emt 0:00:00] [#]} (19. Rc1 $11) 19... e5 {[%emt 0:01:00]} ({Black should try} 19... gxf5 $1 $17 20. exf5 e5 21. Nxe5 Nxb2) 20. fxg6 {[%emt 0:00:00]} (20. Nxh4 g5 21. Qxg5 Nxb2 $19) (20. Bxh4 gxf5 21. Bxf6 Bxf6 22. exf5 Nxb2 $15) 20... fxg6 {[%emt 0:00:03]} 21. Nxh4 {[%emt 0:00:00]} ({White should play} 21. Bc2 $14) 21... Nxb2 {[%emt 0:00:26]} 22. Rc1 {[%emt 0:00:00]} Rg8 {[%emt 0:01:16]} (22... Ng4 23. hxg4 Bxh4 24. Bxh4 Rxh4 25. Rc2) 23. Qh6 {[%emt 0:00:00]} Bf8 {[%emt 0:00:35]} 24. Qg5 {[%emt 0:00:00]} (24. Qe3 $1 $11) 24... Rf7 $2 {[%emt 0:00:39] [#]} (24... Nh5 $1 $15 {keeps the upper hand.}) 25. c4 $1 $16 {[%emt 0:00:00]} (25. Nxg6 $2 {is the wrong capture.} Be7 26. h4 Rfg7 $19) 25... Be7 {[%emt 0:00:28][%cal Of6e4] ...Nxe4! is the strong threat.} 26. Qe3 {[%emt 0:00:00] Strongly threatening cxb5.} Nh7 $2 {[%emt 0:00:20] Loses the game.} (26... Nd7 $16) 27. Nhf3 $18 {[%emt 0:00:00] Hoping for cxb5.} Qd8 $2 {[%emt 0:00:14]} (27... Nxc4 28. Nxc4 bxc4 29. Rxc4 Rgg7) 28. cxb5 {[%emt 0:00:00]} axb5 {[%emt 0:00:02]} 29. Qb3 {[%emt 0:00:00][%csl LRb2,LRb5] Against Nc4} Na4 {[%emt 0:00:07]} 30. Qxb5+ {[%emt 0:01:40]} Qd7 31. Qb3 {[%emt 0:00:00] aiming for Bd3.} Ng5 {[%emt 0:00:06]} 32. Bd3 {[%emt 0:00:00]} Nc5 {[%emt 0:00:11]} 33. Bxc5 {[%emt 0:00:15]} dxc5 {[%emt 0:00:02]} 34. Bb5 {[%emt 0:00:00]} (34. Nxe5 Qd4+ 35. Kh1 Qxe5 $11) 34... Bc6 {[%emt 0:00:14]} 35. Bc4 {[%emt 0:00:00]} Nxf3+ {[%emt 0:00:00]} (35... Rgg7 $142 36. Bxf7+ Nxf7) 36. Nxf3 {[%emt 0:00:00]} Rxf3 {[%emt 0:00:03]} 37. Qxf3 {[%emt 0:00:00]} Rf8 {[%emt 0:00:01] Against Qf7+} 38. Qg3 {[%emt 0:00:00][%csl LRe5,LRg6]} Qd4+ {[%emt 0:00:02]} 39. Kh1 {[%emt 0:00:00]} Bxe4 {[%emt 0:00:07]} 40. Bb5+ {[%emt 0:00:00]} Kf7 {[%emt 0:00:07]} 41. Rc4 {[%emt 0:00:00]} Qb2 {[%emt 0:00:05]} (41... Qd3 $142 42. Qh2 (42. Qxe5 Qxh3+ 43. Qh2 Qxh2+ 44. Kxh2 Bd6+ 45. Kg1 Bd3 $11) 42... Bf6 43. Rexe4 Qb1+ 44. Qg1 Qxb5 45. Rxc5 Qd3) 42. Rcxe4 {[%emt 0:00:00]} Qxb5 {[%emt 0:00:01]} 43. Qxe5 {[%emt 0:00:00] Threatening mate with Qd5+.} Bf6 {[%emt 0:00:00]} 44. Qc7+ {[%emt 0:00:00]} Kg8 {[%emt 0:00:03]} 45. Qg3 {[%emt 0:00:00]} Kg7 {[%emt 0:00:06]} 46. Rg4 {[%emt 0:00:00]} c4 {[%emt 0:00:13]} 47. Rxg6+ {[%emt 0:01:10]} Kf7 {[#]} 48. Rxf6+ $1 {[%emt 0:00:00]} Kxf6 {[%emt 0:00:02]} 49. Rf1+ {[%emt 0:00:00]} Ke7 {[%emt 0:00:11]} 50. Qg7+ {[%emt 0:00:00] Weighted Error Value: White=0.52/Black=0.72} 1-0

[Event "Romanian Rapid Open 2022"]
[Site "Sebes"]
[Date "2022.12.02"]
[Round "4.18"]
[White "Dragomirescu, Angela"]
[Black "Arion, Ilie"]
[Result "1-0"]
[ECO "A05"]
[WhiteElo "2104"]
[BlackElo "1924"]
[Annotator "TA"]
[PlyCount "89"]
[EventDate "2022.12.02"]
[EventType "rapid"]
[EventCountry "ROU"]
[SourceTitle "playchess.com"]
[Source "ChessBase"]
[SourceQuality "1"]
[TimeControl "600+5"]

{[%evp 18,89,29,28,60,42,93,93,93,93,93,94,118,112,112,64,58,52,56,66,88,47,51,48,45,51,231,233,244,234,253,247,338,325,349,315,345,365,419,418,416,368,618,608,1260,1255,1147,850,839,847,807,809,801,810,795,828,762,717,1835,1782,1845,1847,3678,1288,4133,3251,1792,1889,29984,29985,29985,29986,29988,29989]} 1. e4 {[%emt 0:00:06]} d6 {[%emt 0:00:03]} 2. g3 {[%emt 0:00:51]} g6 {[%emt 0:00:02]} 3. Bg2 {[%emt 0:00:01]} Bg7 {[%emt 0:00:02]} 4. Nf3 {[%emt 0:00:09]} Nf6 {[%emt 0:00:01]} 5. d3 {[%emt 0:00:13]} O-O {[%emt 0:00:08]} 6. O-O {[%emt 0:00:06]} c5 {[%emt 0:00:16]} 7. c3 {[%emt 0:00:24]} Nc6 {[%emt 0:00:11]} 8. Re1 {[%emt 0:00:13]} Bg4 {[%emt 0:00:13]} 9. h3 {[%emt 0:00:12]} Bxf3 {[%emt 0:00:09]} 10. Qxf3 $1 {[%emt 0:00:19] 10.Qxf3 is better than 10.Bxf3.} e5 {[%emt 0:00:05] A05: Réti Opening: 1 Nf3 Nf6.} 11. a3 {[%emt 0:00:19][%cal Ba2a3,Ba3a4][%mdl 32] [#]} a5 $146 {[%emt 0:00:11] [#]} ({Black should play} 11... b5 $14) ({Predecessor:} 11... Qe7 12. b4 b6 13. Nd2 Bh6 14. Nc4 Bxc1 15. Raxc1 Kg7 16. b5 Nd8 17. a4 Ne6 {1-0 (50) Pon,M (2185)-Kuderinov,K (2409) Chess.com INT 2020}) 12. a4 $1 $16 {[%emt 0:00:01]} Ne8 {[%emt 0:00:14] White is better.} 13. Na3 {[%emt 0:00:23]} Nc7 {[%emt 0:00:18]} 14. Nc4 {[%emt 0:00:43]} f5 {[%emt 0:00:42]} 15. exf5 {[%emt 0:01:58]} Rxf5 {[%emt 0:00:02]} 16. Qe2 {[%emt 0:00:15] White is more active.} (16. Qd1 $16) 16... d5 $14 {[%emt 0:00:06]} 17. Ne3 {[%emt 0:01:38]} Rf8 {[%emt 0:00:03]} 18. h4 {[%emt 0:00:41]} Qd7 {[%emt 0:00:11]} 19. Kh2 {[%emt 0:00:41]} Rae8 {[%emt 0:00:02]} 20. Bd2 {[%emt 0:00:12]} Qf7 {[%emt 0:00:14]} 21. Rf1 {[%emt 0:00:04]} e4 $2 {[%emt 0:00:13] This costs Black the game.} (21... b6 $14) 22. dxe4 $18 {[%emt 0:00:06]} dxe4 {[%emt 0:00:05]} 23. Nc4 {[%emt 0:00:19] And now Nd6 would win.} Qe7 {[%emt 0:01:34]} 24. Rae1 {[%emt 0:00:29]} Ne5 {[%emt 0:01:28]} 25. Qxe4 {[%emt 0:00:15]} ({Less strong is} 25. Nxa5 Nd3 $16) ({Not} 25. Bxe4 b6 26. f4 (26. Nxb6 Qe6 $16) 26... Nxc4 27. Qxc4+ Qf7 28. Qxf7+ Kxf7 $18) 25... Qd7 {[%emt 0:00:38] [#] Threatens to win with ...Ng4+.} 26. Nxe5 {[%emt 0:00:08]} Rxe5 {[%emt 0:00:02]} 27. Qc4+ {[%emt 0:00:04]} ({Don't play} 27. Qxb7 Qxd2 28. Rd1 Qe2) 27... Kh8 {[%emt 0:00:10]} 28. Rxe5 {[%emt 0:00:39]} Bxe5 {[%emt 0:00:01]} 29. Bh6 {[%emt 0:00:10] A strong pair of Bishops.} Rf5 {[%emt 0:00:14]} (29... Bg7 30. Bxg7+ Kxg7 31. Qxc5 Rf5) 30. Bh3 {[%emt 0:00:08]} Qd6 {[%emt 0:00:55]} 31. Bxf5 {[%emt 0:00:12]} gxf5 {[%emt 0:04:07]} 32. Bf4 {[%emt 0:00:09]} Bxf4 {[%emt 0:00:00]} 33. Qxf4 {[%emt 0:00:02]} Qxf4 {[%emt 0:00:00]} 34. gxf4 {[%emt 0:00:01][%mdl 4096] Endgame KR-KN} Nd5 {[%emt 0:00:00]} 35. Kg3 {[%emt 0:00:04]} Nb6 {[%emt 0:00:00]} 36. b3 {[%emt 0:00:11]} c4 {[%emt 0:00:00]} 37. bxc4 {[%emt 0:00:10]} Nxc4 {[%emt 0:00:00]} 38. Rb1 {[%emt 0:00:09]} b6 {[%emt 0:00:00]} 39. f3 {[%emt 0:00:07] Hoping for Kf2.} Kg7 {[%emt 0:00:00]} 40. Rb5 {[%emt 0:00:14]} (40. Kf2 $142 Kf6 41. Ke2) 40... Kf6 {[%emt 0:00:00]} 41. Kf2 {[%emt 0:00:09] aiming for Ke2.} Ke6 {[%emt 0:00:00]} 42. Ke2 {[%emt 0:00:01]} Na3 {[%emt 0:00:00]} 43. Rxb6+ {[%emt 0:00:04] White mates.} Kd5 {[%emt 0:00:00]} 44. Kd3 {[%emt 0:00:04]} Nc4 {[%emt 0:00:00]} 45. Rb5+ {[%emt 0:00:03] Weighted Error Value: White=0.11 (very precise) /Black=0.53} 1-0